Cogmind - Beta 12 *** ADVENTURER MODE // 2023.12.23 @ 18:10:34 Player: domorethanyoucan Result: Destroyed by G-47 Trooper with Particle Gun Performance ------------- Evolutions (2) 1000 Regions Visited (5) 1000 Robots Destroyed (22) 110 Value Destroyed (413) 413 Prototype IDs (3) 60 Alien Tech Used (0) 0 Bonus (105) 105 TOTAL SCORE: 2688 Bonus ------- Follower Combat Kills 105 Cogmind --------- Core Integrity 0/550 Matter 300/300 Energy 70/100 System Corruption 4% Temperature Cool (9) Movement Core (100) Ox1 Location -8/Storage Parts ------- > --- POWER (1) -------- (None) > --- PROPULSION (4) --- Armored Wheel > --- UTILITY (4) ------ Small Storage Unit > --- WEAPON (2) ------- (None) > --- INVENTORY (8) ---- Improved Flight Unit Improved Flight Unit Improved Flight Unit Weight Redist. System Sensor Array Terrain Scan Processor Layered Light Armor Plating Peak State ------------ > --- POWER ------------ Light Deuterium Engine > --- PROPULSION ------- Improved Flight Unit Improved Flight Unit Improved Flight Unit Cesium-ion Thruster > --- UTILITY ---------- Small Storage Unit Weight Redist. System Signal Interpreter Hacking Suite > --- WEAPON ----------- Advanced Beam Rifle Gauss Cannon > --- INVENTORY -------- Light Ion Engine Armored Wheel Armored Wheel Weight Redist. System Sensor Array Terrain Scan Processor Layered Light Armor Plating [Rating: 31] Favorites ----------- Power Light Ion Engine Engine Light Ion Engine Power Core Nuclear Core Propulsion Flight Unit Wheel Wheel Hover Unit Improved Hover Unit Flight Unit Flight Unit Utility Small Storage Unit Device Weight Redist. System Storage Small Storage Unit Processor Signal Interpreter Hackware Hacking Suite Weapon Beam Rifle Energy Gun Beam Rifle Ballistic Gun Assault Rifle Ballistic Cannon Gauss Cannon Build | -11 -10 -9 -9 -8 -8 ------- Run | Jun Mat Mat Min Mat Sto Slots Evolved 4 | . . 2 . 2 . Power . | . . . . . . Propulsion 2 | . . 2 . . . Utility 2 | . . . . 2 . Weapon . | . . . . . . Parts Attached 39 | 4 7 10 1 5 12 Power 7 | 1 . 1 1 2 2 Engine 6 | 1 . 1 1 1 2 Core 1 | . . . . 1 . Reactor . | . . . . . . Propulsion 18 | 1 1 8 . . 8 Treads . | . . . . . . Leg . | . . . . . . Wheel 4 | 1 1 1 . . 1 Hover 1 | . . 1 . . . Flight 13 | . . 6 . . 7 Utility 6 | 1 2 . . 2 1 Device 2 | . . . . 2 . Storage 1 | 1 . . . . . Processor 2 | . 2 . . . . Hackware 1 | . . . . . 1 Protection . | . . . . . . Artifact . | . . . . . . Weapon 8 | 1 4 1 . 1 1 Energy Gun 4 | . 2 1 . . 1 Energy Cannon . | . . . . . . Ballistic Gun 3 | 1 2 . . . . Ballistic Cannon 1 | . . . . 1 . Launcher . | . . . . . . Special Weapon . | . . . . . . Impact Weapon . | . . . . . . Slashing Weapon . | . . . . . . Piercing Weapon . | . . . . . . Special Melee Weapon . | . . . . . . Unidentified Prototypes 3 | . . . . . 3 Parts Lost 18 | . . 5 2 . 11 Power 4 | . . 1 1 . 2 Propulsion 8 | . . 3 . . 5 Utility 2 | . . . . . 2 Weapon 4 | . . 1 1 . 2 Highest Loss Streak 9 | . . 3 4 . 9 To Critical Strikes . | . . . . . . Average Slot Usage (%) 80 | . 78 84 66 81 82 Engine 10 | . 14 8 8 9 7 Wheel 5 | . 13 2 . . . Flight 19 | . . 31 33 27 30 Device 3 | . . . . 18 9 Storage 11 | . 14 11 11 9 9 Processor 9 | . 10 11 11 9 7 Hackware 2 | . . . . . 8 Energy Gun 8 | . 8 18 2 . 2 Ballistic Gun 6 | . 16 . . . . Ballistic Cannon 2 | . . . . 9 8 Naked Turns . | . . . . . . Heaviest Build 17 | 10 13 14 11 16 17 Greatest Support 26 | 10 10 16 12 18 26 Greatest Overweight (x) 3 | . 3 2 . . 1 Average Overweight (x) . | . . . . . . Largest Inventory Capacity 8 | 8 8 8 8 8 8 Average Capacity 7 | 7 8 8 8 8 8 Most Carried 8 | 8 8 8 8 8 8 Average Carried 7 | 4 7 7 7 6 7 Final Capacity 8 | 8 8 8 8 8 8 Final Carried 8 | 8 8 8 8 8 7 Class Distribution -------------------- 45% | Mutant 23% | Scavenger-Mutant 14% | Scavenger-Sprinter 14% | Hacker-Sprinter Dominant Class ---------------- Mutant | -10/Materials Scavenger-Sprinter | -9/Materials Scavenger-Mutant | -9/Mines Scavenger-Mutant | -8/Materials Hacker-Sprinter | -8/Storage Resources | -11 -10 -9 -9 -8 -8 ----------- Run | Jun Mat Mat Min Mat Sto Matter Collected 727 | 184 184 111 . 53 195 Remotely . | . . . . . . Salvage Created 550 | . 180 187 . 5 178 Parts 38 | . 13 11 . . 14 Haulers Intercepted 2 | . . . . . 2 Recyclers Shooed . | . . . . . . Parts Field Recycled . | . . . . . . Retrieved Matter . | . . . . . . Parts Self-Destructed . | . . . . . . Prevented . | . . . . . . Kills | -11 -10 -9 -9 -8 -8 ------- Run | Jun Mat Mat Min Mat Sto Combat Hostiles Destroyed 16 | . 7 7 . . 2 Guns 13 | . 7 5 . . 1 Cannons 1 | . . . . . 1 Classes Destroyed 6 | . 3 . . 1 2 Hauler 2 | . . . . . 2 Operator 1 | . . . . 1 . Watcher 3 | . 2 . . . 1 Swarmer 10 | . 6 4 . . . Grunt 4 | . 1 3 . . . Sentry 2 | . . . . . 2 Best Kill Streak 5 | . 3 5 . 1 2 Combat Bots Only 5 | . 3 5 . . 2 Max Kills in Single Turn 2 | . 2 1 . 1 2 Gunslinging 1 | . 1 . . . . Exploded . | . . . . . . Melee . | . . . . . . Uniques/NPCs Destroyed . | . . . . . . Combat | -11 -10 -9 -9 -8 -8 -------- Run | Jun Mat Mat Min Mat Sto Damage Taken 1711 | . 157 302 12 28 1212 Core 641 | . 33 47 6 16 539 Absorbed by Shields 83 | . . . . . 83 Core Remaining (%) 90 | 100 86 . 86 . . Volleys Fired 66 | . 21 22 . 3 20 Largest 2 | . 2 2 . 1 2 Hottest 112 | . 76 112 . 48 109 Shots Fired 99 | . 41 32 . 3 23 Gun 76 | . 41 32 . . 3 Cannon 23 | . . . . 3 20 Launcher . | . . . . . . Special . | . . . . . . Kinetic 51 | . 28 . . 3 20 Thermal 48 | . 13 32 . . 3 Explosive . | . . . . . . Electromagnetic . | . . . . . . Robot Hit Streak 17 | . 9 13 . 13 17 Robot Miss Streak 2 | . 2 1 . . 1 Penetration Max . | . . . . . . Secondary Targets 2 | . 1 1 . . . Max Gunslinging Chain 1 | . 1 1 . . . Shots Hit Robots 73 | . 28 27 . 3 15 Core Hits 26 | . 10 8 . 1 7 Critical Kills . | . . . . . . Critical Parts Destroyed . | . . . . . . Critical Strikes 6 | . 1 3 . . 2 Burn 4 | . 1 3 . . . Blast 2 | . . . . . 2 Melee Attacks . | . . . . . . Impact . | . . . . . . Slashing . | . . . . . . Piercing . | . . . . . . Sneak Attacks . | . . . . . . Combat Hostiles . | . . . . . . Follow-up Attacks . | . . . . . . Damage Inflicted 1408 | . 419 387 . 60 542 Guns 846 | . 419 387 . . 40 Cannons 420 | . . . . 60 360 Explosions 106 | . . . . . 106 Melee . | . . . . . . Ramming 36 | . . . . . 36 Kinetic 679 | . 259 . . 60 360 Thermal 587 | . 160 387 . . 40 Explosive 106 | . . . . . 106 Electromagnetic . | . . . . . . Impact . | . . . . . . Slashing . | . . . . . . Piercing . | . . . . . . Highest Corruption 4 | . . . . . 4 Average Corruption 3 | . . . . . 3 Corruption Purged . | . . . . . . Corruption Blocked . | . . . . . . Overload Shots . | . . . . . . Overflow Damage . | . . . . . . Projectiles . | . . . . . . Explosions . | . . . . . . Melee . | . . . . . . Knockbacks 5 | . . . . 1 4 Impact . | . . . . . . Kinetic 4 | . . . . 1 3 Secondary 1 | . . . . . 1 Self-Inflicted Damage 15 | . . . . . 15 Shots . | . . . . . . Rammed 10 | . . . . . 10 Targets Rammed 10 | . . . . . 10 Kicked . | . . . . . . Crushed . | . . . . . . Highest Temperature 292 | . 135 292 . 8 203 Average Temperature 100 | . 57 165 . 4 47 Received Heat Transfer 910 | . 42 129 . . 739 Effects 3 | . . 3 . . . Energy Bleed 1 | . . 1 . . . Interference 2 | . . 2 . . . Siege Activations . | . . . . . . Robots Corrupted . | . . . . . . Combat Hostiles . | . . . . . . Parts Fried . | . . . . . . Impact Corruptions . | . . . . . . Robots Melted 2 | . . 2 . . . Combat Hostiles 2 | . . 2 . . . Parts Melted 2 | . . 2 . . . Heat Transferred 1776 | . 481 1221 . . 74 Parts Sabotaged . | . . . . . . Parts Stolen . | . . . . . . Parts Stripped . | . . . . . . Power Chain Reactions . | . . . . . . Missiles Intercepted . | . . . . . . Alert | -11 -10 -9 -9 -8 -8 ------- Run | Jun Mat Mat Min Mat Sto Peak Influence 273 | . 273 272 96 67 195 Initial 97 | . . 97 86 31 24 Average 113 | . 143 173 75 45 87 Maximum Alert Level 1 | . 1 1 . . . Low Security (%) 82 | 100 65 70 100 100 100 Level 1 17 | . 34 29 . . . Level 2 . | . . . . . . Level 3 . | . . . . . . Level 4 . | . . . . . . Level 5 . | . . . . . . High Security . | . . . . . . Max Security . | . . . . . . Squads Dispatched 8 | . 1 2 . 1 4 Investigation 5 | . 1 1 . 1 2 Extermination . | . . . . . . Reinforcement 1 | . . 1 . . . Assault 2 | . . . . . 2 Garrison . | . . . . . . Intercept . | . . . . . . Searches Triggered . | . . . . . . Construction Impeded . | . . . . . . Haulers Reinforced . | . . . . . . Active Scanning Responses . | . . . . . . Cargo Convoy Interrupts . | . . . . . . Stealth | -11 -10 -9 -9 -8 -8 --------- Run | Jun Mat Mat Min Mat Sto Distress Signals 4 | . 3 . . . 1 Communications Jammed . | . . . . . . Distress Signals . | . . . . . . Times Spotted 71 | . 13 13 3 3 39 Peak Tracking Total 24 | . 4 7 3 2 24 Tactical Retreats 5 | . 1 . 1 . 3 Traps | -11 -10 -9 -9 -8 -8 ------- Run | Jun Mat Mat Min Mat Sto Traps Triggered 5 | . 3 . . . 2 Indirectly . | . . . . . . Trap Hack Attempts . | . . . . . . Triggered . | . . . . . . Disarmed . | . . . . . . Reprogrammed . | . . . . . . Reused . | . . . . . . Traps Extracted . | . . . . . . Installed . | . . . . . . Triggered . | . . . . . . Machines | -11 -10 -9 -9 -8 -8 ---------- Run | Jun Mat Mat Min Mat Sto Machines Disabled 1 | . . . . . 1 Max in Single Turn 1 | . . . . . 1 Machines Repaired . | . . . . . . Machines Sabotaged . | . . . . . . Overloaded Fab Kills . | . . . . . . Hacking | -11 -10 -9 -9 -8 -8 --------- Run | Jun Mat Mat Min Mat Sto Machines Accessed 13 | . 3 5 1 1 3 Terminals 10 | . 3 3 . 1 3 Fabricators . | . . . . . . Repair Stations . | . . . . . . Recycling Units 1 | . . 1 . . . Scanalyzers 1 | . . 1 . . . Garrison Access . | . . . . . . Total Hacks 31 | . 8 9 1 4 9 Successful 10 | . 3 2 1 1 3 Failed 21 | . 5 7 . 3 6 Catastrophic 5 | . . 3 . . 2 Database Lockouts . | . . . . . . Manual 18 | . 2 7 . 2 7 Terminals 28 | . 8 7 . 4 9 Fabricators . | . . . . . . Repair Stations . | . . . . . . Recycling Units 1 | . . 1 . . . Scanalyzers 1 | . . 1 . . . Garrison Access . | . . . . . . Terminal Hacks 9 | . 3 1 1 1 3 Record 1 | . . 1 . . . Open Door 1 | . . . 1 . . Level Access Points 2 | . 1 . . . 1 Branch Access Points 1 | . . . . . 1 Emergency Access Points 1 | . . . . 1 . Unreport Threat 1 | . . . . . 1 Dispatch Records 1 | . 1 . . . . Recall Investigation 1 | . 1 . . . . Fabricator Hacks . | . . . . . . Repair Station Hacks . | . . . . . . Recycling Unit Hacks 1 | . . 1 . . . Report Inventory 1 | . . 1 . . . Scanalyzer . | . . . . . . Garrison Access Hacks . | . . . . . . Unauthorized Hacks . | . . . . . . Terminals . | . . . . . . Fabricators . | . . . . . . Repair Stations . | . . . . . . Recycling Units . | . . . . . . Scanalyzers . | . . . . . . Garrison Access . | . . . . . . Data Cores Recovered 1 | . . . . 1 . Used 1 | . . . . 1 . Hacking Detections 11 | . 3 4 . 1 3 Full Trace Events 7 | . 2 1 . 1 3 Feedback Events . | . . . . . . Feedback Blocked . | . . . . . . Robot Schematics Acquired . | . . . . . . Robots Built . | . . . . . . Authchips . | . . . . . . Time . | . . . . . . Total Robot Build Rating . | . . . . . . Part Schematics Acquired . | . . . . . . Parts Built . | . . . . . . Authchips . | . . . . . . Time . | . . . . . . Total Part Build Rating . | . . . . . . Parts Repaired . | . . . . . . Time . | . . . . . . Parts Recycled . | . . . . . . Recycled Matter . | . . . . . . Retrieved Matter . | . . . . . . Retrieved Components . | . . . . . . Parts Scanalyzed . | . . . . . . Part Schematics Acquired . | . . . . . . Parts Damaged . | . . . . . . Bothacking | -11 -10 -9 -9 -8 -8 ------------ Run | Jun Mat Mat Min Mat Sto Used RIF Installer . | . . . . . . Robots Hacked . | . . . . . . Non-combat . | . . . . . . Combat . | . . . . . . Robot Hacks Applied . | . . . . . . Relay Couplers Released . | . . . . . . Fabnet Peak Effective % . | . . . . . . Robots Rewired . | . . . . . . Allies Hacked . | . . . . . . Hacks Repelled . | . . . . . . Allies | -11 -10 -9 -9 -8 -8 -------- Run | Jun Mat Mat Min Mat Sto Total Allies 2 | . . . . . 2 Largest Group 2 | . . . . . 2 Highest-Rated Group 62 | . . . . . 62 Highest-Rated Ally 31 | . . . . . 31 Total Orders . | . . . . . . Ally Attacks 20 | . . . . . 20 Total Damage 274 | . . . . . 274 Kills 3 | . . . . . 3 Allies Corrupted . | . . . . . . Allies Melted 1 | . . . . . 1 Intel | -11 -10 -9 -9 -8 -8 ------- Run | Jun Mat Mat Min Mat Sto Robot Analysis Total . | . . . . . . Derelict Logs Recovered . | . . . . . . Drone Launches . | . . . . . . Drone Recoveries . | . . . . . . Exploration | -11 -10 -9 -9 -8 -8 ------------- Run | Jun Mat Mat Min Mat Sto Turns Passed 756 | 56 246 158 45 58 193 Spaces Moved 970 | 51 178 201 123 125 292 Core 27 | 3 1 . . . 23 Treads . | . . . . . . Legs . | . . . . . . Wheels 246 | 48 177 21 . . . Hover . | . . . . . . Flight 697 | . . 180 123 125 269 Fastest Speed 29 | 50 80 31 34 34 29 Average Speed 48 | 78 92 39 34 34 36 Slowest Speed 200 | 80 200 200 34 34 100 Overloaded Moves . | . . . . . . Propulsion Burnouts . | . . . . . . Robots Hopped 8 | . . 1 2 1 4 Cave-ins Triggered . | . . . . . . Exploration Rate (%) 26 | 4 33 34 22 8 60 Regions Visited 5 Branch Regions 2 Pre-discovered Areas . | . . . . . . Known Exits Taken 3 | . 1 . 1 1 . Unknown Exits Taken 2 | 1 . 1 . . . Scrap Searched . | . . . . . . Spaces Dug 5 | . . . . . 5 Terrain Destroyed 20 | . . . . 1 19 Melee . | . . . . . . Projectile 9 | . . . . 1 8 AOE 11 | . . . . . 11 Terrain Rammed . | . . . . . . Walls Destroyed . | . . . . . . Machines Disabled . | . . . . . . Actions | -11 -10 -9 -9 -8 -8 --------- Run | Jun Mat Mat Min Mat Sto Total 1140 | 66 218 246 124 134 352 Wait 2 | . . 2 . . . Move 952 | 50 177 198 119 122 286 Hop 5 | . . 1 1 1 2 Pick Up 38 | 12 7 8 2 3 6 Fast Attach 7 | . 4 1 . . 2 Attach 22 | 4 2 8 1 3 4 Detach 2 | . . 2 . . . Swap 10 | . 1 1 . 2 6 Drop 17 | . 6 3 1 . 7 Fire 66 | . 21 22 . 3 20 Melee . | . . . . . . Ram 10 | . . . . . 10 Kick . | . . . . . . Crush . | . . . . . . Escape Stasis 9 | . . . . . 9 Rewire . | . . . . . . Trap . | . . . . . . Miscellaneous . | . . . . . . Route ------- -11/Junkyard -10/Materials (discovered 3 exits: *Mat x3) -9/Materials -9/Mines (discovered 2 exits: *Mat x2) -8/Materials -8/Storage (discovered 2 exits: Fac / Rec) History --------- Turn | Location | Event 24 | -11/Junkyard | Discovered new exit (range 15) 57 | -11/Junkyard | Entered Materials 83 | -10/Materials | Identified exit to Materials 303 | -10/Materials | Entered another Materials area 303 | -9/Materials | Evolved 2 slots: Propulsion x2 336 | -9/Materials | Build established: Mutant 377 | -9/Materials | Lost 3 parts (1p2n) 456 | -9/Materials | Discovered new exit (range 9) 461 | -9/Materials | Entered Mines 475 | -9/Mines | Discovered new exit (range 4) 478 | -9/Mines | Met a Derelict who couldn't figure out how to use a Trap Extractor 486 | -9/Mines | Identified exit to Materials 495 | -9/Mines | Discovered exit to Materials (range 4) 506 | -9/Mines | Entered Materials 506 | -8/Materials | Evolved 2 slots: Utility x2 509 | -8/Materials | Lost 4 parts (1p1n2w) 523 | -8/Materials | Discovered new exit (range 16) 553 | -8/Materials | Identified exit to Storage 564 | -8/Materials | Entered Storage 576 | -8/Storage | Identified exit to Factory 665 | -8/Storage | Identified exit to Recycling 695 | -8/Storage | Met a pair of Derelict thieves 738 | -8/Storage | Core integrity fell below 50% 748 | -8/Storage | Core integrity fell below 20% 757 | -8/Storage | Destroyed by G-47 Trooper with Particle Gun Last Messages --------------- 00739_ Weight Redist. System broken. 00739_ Destabilizing: Short circuit. 00740_ K-01 Serf collects debris. 00740_ Adv. Beam Rifle destroyed. 00741_ Slammed into G-47 Trooper. 00741_ Imp. Flight Unit destroyed. 00741_ System corrupted by crushing effect (+1). 00741_ Imp. Flight Unit destroyed. 00742_ Acquired 21 matter. 00744_ K-01 Serf collects debris. 00744_ Imp. VTOL Module destroyed. 00746_ Broken Weight Redist. System destroyed. 00749_ Hacking Suite severed. 00751_ Slammed into L-31 Rogue. 00754_ Slammed into G-47 Trooper. 00754_ O-16 Technician: "IFF HANDSHAKE FAILED. SECURING TERMINAL." 00755_ Slammed into G-47 Trooper. 00755_ Arm. Wheel broken. 00755_ Destabilizing: Short circuit. 00756_ Slammed into G-47 Trooper. Map ----- +----------------------------------------------------+ | ???????????????????????????????????? | | ???????????????????????????????????? | | ???????????????????????????????????? | | ???????????????????????????????????? | | ??????????????????????????